{"text_format":"3","workbook":"xlsx","n_sheets":5,"sheets":["Форма предварительного протокол","7 класс","8 класс","9 класс","Общий"],"read":"whole","date_system":"1900"}

{"sheet":"Форма предварительного протокол","index":0,"n_rows":7,"n_cols":14,"rows_kept":7,"merged":[[2,0,2,13]]}
[{"$nulls":13},"Приложение № 4"]
[]
["Итоговый протокол по итогам муниципального этапа ВсОШ/РОШ  по предмету \"Экология\" Алексеевского муниципального района в 2018-2019 учебном году                                                 \n"]
[]
["№ п/п","Муниципалитет","Полное наименование образовательного учреждения (по уставу)","Фамилия","Имя","Отчество","Класс","Дата рождения","Пол","Балл","Максимальный балл","Статус","Фамилия, имя, отчество педагога, подготовившего участника олимпиады","Полное наименование образовательного учреждения (по уставу)"]
[1,"Алексеевский","МБОУ Алексеевская средняя общеобразовательная школа №1 Алексеевского муниципального района Республики Татарстан","Гайнуллова","Линара","Фаризовна",8,"2004-10-24","жен",25.5,51,"призёр","Харитонова С.С.","МБОУ Алексеевская средняя общеобразовательная школа №1 Алексеевского муниципального района Республики Татарстан"]
[2,"Алексеевский","МБОУ Ромодановская средняя общеобразовательная школа Алексеевского муниципального района Республики Татарстан","Озерова ","Ольга","Викторовна",9,"2003-11-26","жен",28,51,"призёр","Родионова И.Л.","МБОУ Ромодановская средняя общеобразовательная школа Алексеевского муниципального района Республики Татарстан"]

{"sheet":"7 класс","index":1,"n_rows":8,"n_cols":8,"rows_kept":8,"merged":[[2,0,2,7]]}
[]
[]
["Итоговый протокол по итогам муниципального этапа ВсОШ/РОШ  по предмету \"Экология\" Алексеевского муниципального района в 2018-2019 учебном году                                                                                                                             "]
[]
["№ п/п","Муниципалитет","Полное наименование образовательного учреждения (по уставу)","Фамилия","Балл","Максимальный балл","Статус","Фамилия, имя, отчество педагога, подготовившего участника олимпиады"]
[11,"Алексеевский","МБОУ Среднетиганская средняя общеобразовательная школа Алексеевского муниципального района Республики Татарстан","Зарипова ",13.5,51,"участник","Баязитов Р.Р."]
[2,"Алексеевский","МБОУ Алексеевская средняя общеобразовательная школа №3 им. Г.С. Боровикова Алексеевского муниципального района Республики Татарстан","Синякова ",11,51,"участник","Байкова Л.А."]
[3,"Алексеевский","МБОУ Алексеевская средняя общеобразовательная школа №3 им. Г.С. Боровикова Алексеевского муниципального района Республики Татарстан","Горелов",8.5,51,"участник","Байкова Л.А."]

{"sheet":"8 класс","index":2,"n_rows":12,"n_cols":8,"rows_kept":12,"merged":[[2,0,2,7]]}
[]
[]
["Итоговый протокол по итогам муниципального этапа ВсОШ/РОШ  по предмету \"Экология\" Алексеевского муниципального района в 2018-2019 учебном году                               "]
[]
["№ п/п","Муниципалитет","Полное наименование образовательного учреждения (по уставу)","Фамилия","Балл","Максимальный балл","Статус","Фамилия, имя, отчество педагога, подготовившего участника олимпиады"]
[1,"Алексеевский","МБОУ Алексеевская средняя общеобразовательная школа №1 Алексеевского муниципального района Республики Татарстан","Гайнуллова",25.5,51,"призёр","Харитонова С.С."]
[2,"Алексеевский","МБОУ Алексеевская средняя общеобразовательная школа №1 Алексеевского муниципального района Республики Татарстан","Кулемина",17.5,51,"участник","Харитонова С.С."]
[3,"Алексеевский","МБОУ «Алексеевская средняя общеобразовательная школа №2 с углубленным изучением отдельных предметов» Алексеевского муниципального района Республики Татарстан","Грачева",14,51,"участник","Лукина Н.Л."]
[4,"Алексеевский","МБОУ Алексеевская средняя общеобразовательная школа №1 Алексеевского муниципального района Республики Татарстан","Белова",14,51,"участник","Харитонова С.С."]
[5,"Алексеевский","МБОУ Алексеевская средняя общеобразовательная школа №1 Алексеевского муниципального района Республики Татарстан","Зайнутдинова",10,51,"участник","Харитонова С.С."]
[6,"Алексеевский","МБОУ Алексеевская средняя общеобразовательная школа №3 им. Г.С. Боровикова Алексеевского муниципального района Республики Татарстан","Самороднова ",9.5,51,"участник","Байкова Л.А."]
[7,"Алексеевский","МБОУ Среднетиганская средняя общеобразовательная школа Алексеевского муниципального района Республики Татарстан","Габидуллин",8.5,51,"участник","Хаметшин М.З."]

{"sheet":"9 класс","index":3,"n_rows":9,"n_cols":8,"rows_kept":9,"merged":[[2,0,2,7]]}
[]
[]
["Итоговый протокол по итогам муниципального этапа ВсОШ/РОШ  по предмету \"Экология\" Алексеевского муниципального района в 2018-2019 учебном году                               "]
[]
["№ п/п","Муниципалитет","Полное наименование образовательного учреждения (по уставу)","Фамилия","Балл","Максимальный балл","Статус","Фамилия, имя, отчество педагога, подготовившего участника олимпиады"]
[1,"Алексеевский","МБОУ Ромодановская средняя общеобразовательная школа Алексеевского муниципального района Республики Татарстан","Озерова ",28,51,"призёр","Родионова И.Л."]
[2,"Алексеевский","МБОУ Ромодановская средняя общеобразовательная школа Алексеевского муниципального района Республики Татарстан","Егорова",24,51,"участник","Родионова И.Л."]
[3,"Алексеевский","МБОУ «Алексеевская средняя общеобразовательная школа №2 с углубленным изучением отдельных предметов» Алексеевского муниципального района Республики Татарстан","Мусина",20,51,"участник","Ягудина Л.Р."]
[4,"Алексеевский","МБОУ Алексеевская средняя общеобразовательная школа №3 им. Г.С. Боровикова Алексеевского муниципального района Республики Татарстан","Зарипов",19,51,"участник","Байкова Л.А."]

{"sheet":"Общий","index":4,"n_rows":19,"n_cols":8,"rows_kept":19,"merged":[[2,0,2,7]]}
[]
[]
["Итоговый протокол по итогам муниципального этапа ВсОШ/РОШ  по предмету \"Экология\" Алексеевского муниципального района в 2018-2019 учебном году                               "]
[]
["№ п/п","Муниципалитет","Полное наименование образовательного учреждения (по уставу)","Фамилия","Балл","Максимальный балл","Статус","Фамилия, имя, отчество педагога, подготовившего участника олимпиады"]
[1,"Алексеевский",{"$f":"'7 класс'!C6","v":"МБОУ Среднетиганская средняя общеобразовательная школа Алексеевского муниципального района Республики Татарстан"},{"$f":"'7 класс'!D6","v":"Зарипова "},{"$f":"'7 класс'!E6","v":13.5},{"$f":"'7 класс'!F6","v":51},"участник",{"$f":"'7 класс'!H6","v":"Баязитов Р.Р."}]
[2,"Алексеевский",{"$f":"'7 класс'!C7","v":"МБОУ Алексеевская средняя общеобразовательная школа №3 им. Г.С. Боровикова Алексеевского муниципального района Республики Татарстан"},{"$f":"'7 класс'!D7","v":"Синякова "},{"$f":"'7 класс'!E7","v":11},{"$f":"'7 класс'!F7","v":51},"участник",{"$f":"'7 класс'!H7","v":"Байкова Л.А."}]
[3,"Алексеевский",{"$f":"'7 класс'!C8","v":"МБОУ Алексеевская средняя общеобразовательная школа №3 им. Г.С. Боровикова Алексеевского муниципального района Республики Татарстан"},{"$f":"'7 класс'!D8","v":"Горелов"},{"$f":"'7 класс'!E8","v":8.5},{"$f":"'7 класс'!F8","v":51},"участник",{"$f":"'7 класс'!H8","v":"Байкова Л.А."}]
[4,"Алексеевский",{"$f":"'8 класс'!C6","v":"МБОУ Алексеевская средняя общеобразовательная школа №1 Алексеевского муниципального района Республики Татарстан"},{"$f":"'8 класс'!D6","v":"Гайнуллова"},{"$f":"'8 класс'!E6","v":25.5},{"$f":"'8 класс'!F6","v":51},"призёр",{"$f":"'8 класс'!H6","v":"Харитонова С.С."}]
[5,"Алексеевский",{"$f":"'8 класс'!C7","v":"МБОУ Алексеевская средняя общеобразовательная школа №1 Алексеевского муниципального района Республики Татарстан"},{"$f":"'8 класс'!D7","v":"Кулемина"},{"$f":"'8 класс'!E7","v":17.5},{"$f":"'8 класс'!F7","v":51},"участник",{"$f":"'8 класс'!H7","v":"Харитонова С.С."}]
[6,"Алексеевский",{"$f":"'8 класс'!C8","v":"МБОУ «Алексеевская средняя общеобразовательная школа №2 с углубленным изучением отдельных предметов» Алексеевского муниципального района Республики Татарстан"},{"$f":"'8 класс'!D8","v":"Грачева"},{"$f":"'8 класс'!E8","v":14},{"$f":"'8 класс'!F8","v":51},"участник",{"$f":"'8 класс'!H8","v":"Лукина Н.Л."}]
[7,"Алексеевский",{"$f":"'8 класс'!C9","v":"МБОУ Алексеевская средняя общеобразовательная школа №1 Алексеевского муниципального района Республики Татарстан"},{"$f":"'8 класс'!D9","v":"Белова"},{"$f":"'8 класс'!E9","v":14},{"$f":"'8 класс'!F9","v":51},"участник",{"$f":"'8 класс'!H9","v":"Харитонова С.С."}]
[8,"Алексеевский",{"$f":"'8 класс'!C10","v":"МБОУ Алексеевская средняя общеобразовательная школа №1 Алексеевского муниципального района Республики Татарстан"},{"$f":"'8 класс'!D10","v":"Зайнутдинова"},{"$f":"'8 класс'!E10","v":10},{"$f":"'8 класс'!F10","v":51},"участник",{"$f":"'8 класс'!H10","v":"Харитонова С.С."}]
[9,"Алексеевский",{"$f":"'8 класс'!C11","v":"МБОУ Алексеевская средняя общеобразовательная школа №3 им. Г.С. Боровикова Алексеевского муниципального района Республики Татарстан"},{"$f":"'8 класс'!D11","v":"Самороднова "},{"$f":"'8 класс'!E11","v":9.5},{"$f":"'8 класс'!F11","v":51},"участник",{"$f":"'8 класс'!H11","v":"Байкова Л.А."}]
[10,"Алексеевский",{"$f":"'8 класс'!C12","v":"МБОУ Среднетиганская средняя общеобразовательная школа Алексеевского муниципального района Республики Татарстан"},{"$f":"'8 класс'!D12","v":"Габидуллин"},{"$f":"'8 класс'!E12","v":8.5},{"$f":"'8 класс'!F12","v":51},"участник",{"$f":"'8 класс'!H12","v":"Хаметшин М.З."}]
[11,"Алексеевский",{"$f":"'9 класс'!C6","v":"МБОУ Ромодановская средняя общеобразовательная школа Алексеевского муниципального района Республики Татарстан"},{"$f":"'9 класс'!D6","v":"Озерова "},{"$f":"'9 класс'!E6","v":28},{"$f":"'9 класс'!F6","v":51},"призёр",{"$f":"'9 класс'!H6","v":"Родионова И.Л."}]
[12,"Алексеевский",{"$f":"'9 класс'!C7","v":"МБОУ Ромодановская средняя общеобразовательная школа Алексеевского муниципального района Республики Татарстан"},{"$f":"'9 класс'!D7","v":"Егорова"},{"$f":"'9 класс'!E7","v":24},{"$f":"'9 класс'!F7","v":51},"участник",{"$f":"'9 класс'!H7","v":"Родионова И.Л."}]
[13,"Алексеевский",{"$f":"'9 класс'!C8","v":"МБОУ «Алексеевская средняя общеобразовательная школа №2 с углубленным изучением отдельных предметов» Алексеевского муниципального района Республики Татарстан"},{"$f":"'9 класс'!D8","v":"Мусина"},{"$f":"'9 класс'!E8","v":20},{"$f":"'9 класс'!F8","v":51},"участник",{"$f":"'9 класс'!H8","v":"Ягудина Л.Р."}]
[14,"Алексеевский",{"$f":"'9 класс'!C9","v":"МБОУ Алексеевская средняя общеобразовательная школа №3 им. Г.С. Боровикова Алексеевского муниципального района Республики Татарстан"},{"$f":"'9 класс'!D9","v":"Зарипов"},{"$f":"'9 класс'!E9","v":19},{"$f":"'9 класс'!F9","v":51},"участник",{"$f":"'9 класс'!H9","v":"Байкова Л.А."}]